{"text_format":"3","workbook":"xlsx","n_sheets":1,"sheets":["Izvješće o troškovima"],"not_rendered":{"defined_names":4},"read":"whole","date_system":"1900"}

{"sheet":"Izvješće o troškovima","index":0,"n_rows":14,"n_cols":14,"rows_kept":14,"merged":[[0,1,0,5],[2,3,2,5],[2,6,2,7],[2,8,2,10],[4,3,4,5],[4,6,4,7],[4,8,4,10]]}
[null,"Izvješće o putnim troškovima"]
[]
[null,"Ime","Jasna Ivanković","Odobrio",null,null,"Tomislav Kralj",null,"Naknada po prijeđenom kilometru",null,null,{"v":0.32,"d":"0.32 kn"}]
[]
[null,"Odjel","Prodaja","Datum podnošenja",null,null,{"$f":"TODAY()","v":"2018-01-19"},null,"Ukupna naknada",null,null,{"$f":"UkupnaNaknada","v":{"v":3292.653333333334,"d":"3,292.65 kn"}}]
[]
[null,"Razdoblje",{"$f":"IF(MIN(B10:B13)=MAX(B10:B13),TEXT(MIN(B10:B13),\"m.d.yy.\"),\"Od \"&TEXT(MIN(B10:B13),\"m.d.yy.\")&\" do \"&TEXT(MAX(B10:B13),\"m.d.yy.\"))","v":"Od 12.20.17. do 12.25.17."}]
[]
[null,"Datum","Opis troška","Cijena zrakoplovne karte","Smještaj","Gradski prijevoz \n(gorivo, iznajmljeni automobil, taksi)","Obroci i napojnice","Konferencije i seminari","Kilometri","Naknada za prijeđene kilometre","Razno","Tečaj","Valuta troška","Ukupno"]
[null,{"$f":"TODAY()-30","v":"2017-12-20"},"Putovanje do ureda klijenta",{"v":350,"d":"350.00"},{"v":150,"d":"150.00"},{"v":45,"d":"45.00"},{"v":12,"d":"12.00"},{"v":50,"d":"50.00"},{"v":35,"d":"35.00"},{"$f":"IF('Izvješće o troškovima'!I10<>\"\",'Izvješće o troškovima'!I10*CijenaKilometra,\"\")","v":{"v":11.200000000000001,"d":"11.20"}},null,{"v":0.204,"d":"0.20"},"CAD",{"$f":"IFERROR(IF(OR('Izvješće o troškovima'!$L10=\"\",'Izvješće o troškovima'!$L10=1),SUM('Izvješće o troškovima'!$J10:$K10,'Izvješće o troškovima'!$D10:$H10)*1,SUM('Izvješće o troškovima'!$J10:$K10,'Izvješće o troškovima'!$D10:$H10)/'Izvješće o troškovima'!$L10),\"\")","v":{"v":3030.3921568627457,"d":"3,030.39 kn"}}]
[null,{"$f":"TODAY()-30","v":"2017-12-20"},"Ručak s klijentom",{"$nulls":3},{"v":24.3,"d":"24.30"},null,{"v":12,"d":"12.00"},{"$f":"IF('Izvješće o troškovima'!I11<>\"\",'Izvješće o troškovima'!I11*CijenaKilometra,\"\")","v":3.84},null,{"v":0.204,"d":"0.20"},"CAD",{"$f":"IFERROR(IF(OR('Izvješće o troškovima'!$L11=\"\",'Izvješće o troškovima'!$L11=1),SUM('Izvješće o troškovima'!$J11:$K11,'Izvješće o troškovima'!$D11:$H11)*1,SUM('Izvješće o troškovima'!$J11:$K11,'Izvješće o troškovima'!$D11:$H11)/'Izvješće o troškovima'!$L11),\"\")","v":{"v":137.94117647058826,"d":"137.94 kn"}}]
[null,"2017-12-20","Popodnevni seminar",{"$nulls":4},{"v":100,"d":"100.00"},{"v":6,"d":"6.00"},{"$f":"IF('Izvješće o troškovima'!I12<>\"\",'Izvješće o troškovima'!I12*CijenaKilometra,\"\")","v":1.92},null,{"v":1,"d":"1.00"},"HRK",{"$f":"IFERROR(IF(OR('Izvješće o troškovima'!$L12=\"\",'Izvješće o troškovima'!$L12=1),SUM('Izvješće o troškovima'!$J12:$K12,'Izvješće o troškovima'!$D12:$H12)*1,SUM('Izvješće o troškovima'!$J12:$K12,'Izvješće o troškovima'!$D12:$H12)/'Izvješće o troškovima'!$L12),\"\")","v":{"v":101.92,"d":"101.92 kn"}}]
[null,{"$f":"TODAY()-25","v":"2017-12-25"},"Putovanje do zračne luke",{"$nulls":5},{"v":70,"d":"70.00"},{"$f":"IF('Izvješće o troškovima'!I13<>\"\",'Izvješće o troškovima'!I13*CijenaKilometra,\"\")","v":{"v":22.400000000000002,"d":"22.40"}},null,{"v":1,"d":"1.00"},"HRK",{"$f":"IFERROR(IF(OR('Izvješće o troškovima'!$L13=\"\",'Izvješće o troškovima'!$L13=1),SUM('Izvješće o troškovima'!$J13:$K13,'Izvješće o troškovima'!$D13:$H13)*1,SUM('Izvješće o troškovima'!$J13:$K13,'Izvješće o troškovima'!$D13:$H13)/'Izvješće o troškovima'!$L13),\"\")","v":{"v":22.400000000000002,"d":"22.40 kn"}}]
[null,"Zbroj",null,{"$f":"SUBTOTAL(109,Troškovi[Cijena zrakoplovne karte])","v":{"v":350,"d":"350.00"}},{"$f":"SUBTOTAL(109,Troškovi[Smještaj])","v":{"v":150,"d":"150.00"}},{"$f":"SUBTOTAL(109,Troškovi[Gradski prijevoz \n(gorivo, iznajmljeni automobil, taksi)])","v":{"v":45,"d":"45.00"}},{"$f":"SUBTOTAL(109,Troškovi[Obroci i napojnice])","v":{"v":36.3,"d":"36.30"}},{"$f":"SUBTOTAL(109,Troškovi[Konferencije i seminari])","v":{"v":150,"d":"150.00"}},{"$f":"SUBTOTAL(109,Troškovi[Kilometri])","v":{"v":123,"d":"123.00"}},{"$f":"SUBTOTAL(109,Troškovi[Naknada za prijeđene kilometre])","v":39.36},{"$f":"SUBTOTAL(109,Troškovi[Razno])","v":{"v":0,"d":"0.00"}},null,null,{"$f":"SUBTOTAL(109,Troškovi[Ukupno])","v":{"v":3292.653333333334,"d":"3,292.65 kn"}}]